Cogmind - Beta 16 @@@ ROGUE MODE // 2025.11.04 @ 11:22:20 Player: MolePlayingNice Result: Destroyed by H-77 Assassin with Coil Gun Performance ------------- Evolutions (7) 3500 Regions Visited (25) 5000 Robots Destroyed (252) 1260 Value Destroyed (16025) 16025 Prototype IDs (38) 760 Alien Tech Used (0) 0 Bonus (12192) 12192 TOTAL SCORE: 38737 Bonus ------- High Alert Combat Kills 1727 Follower Combat Kills 3532 Entered Garrisons 1600 Used RIF Installer 5500 Aligned with FarCom 300 Friendly Fire -467 Cogmind --------- Core Integrity 0/1300 Matter 260/300 Energy 18/100 System Corruption 75% Temperature Cool (0) Movement Core (50) Location -3/Research Parts ------- > --- POWER (2) -------- (None) > --- PROPULSION (6) --- (None) > --- UTILITY (11) ----- System Shield Relay Coupler [Heavy] (15) Relay Coupler [Proto] (9) Relay Coupler [Proto] (9) > --- WEAPON (2) ------- (None) > --- INVENTORY (5) ---- Advanced Point Defense System Relay Coupler [Swarmer] (35) Micro-nuke Launcher Peak State ------------ > --- POWER ------------ Reinforced Fission Core Quantum Reactor > --- PROPULSION ------- Heavy Treads Armored Heavy Treads Biometal Heavy Treads > --- UTILITY ---------- Advanced Cooling System Experimental Cooling System Huge Storage Unit Advanced Signal Interpreter Quantum Capacitor Layered Light Armor Plating Improved Shield Generator Relay Coupler [Grunt] Relay Coupler [Sentry] Relay Coupler [Behemoth] > --- WEAPON ----------- Nova Cannon Improved Remote Datajack > --- INVENTORY -------- Light Antimatter Reactor Centrium Heavy Treads Improved Cooling System Advanced Cooling System Compact Matter Pod Advanced Sensor Array Quantum Capacitor Layered Light Armor Plating Layered Light Armor Plating Remote Force Field Relay Coupler [NC] Relay Coupler [Grunt] Relay Coupler [Grunt] Relay Coupler [Heavy] Relay Coupler [Proto] Relay Coupler [Proto] Relay Coupler [Proto] Matter Neutralizer Guided Plasma Cannon Nova Cannon Micro-nuke Launcher [Rating: 144] Favorites ----------- Power Quantum Reactor Engine Ion Engine Power Core Light Nuclear Core Reactor Quantum Reactor Propulsion Light Treads Treads Light Treads Leg Aluminum Leg Utility Huge Storage Unit Device Improved Cooling System Storage Huge Storage Unit Processor Advanced Signal Interpreter Hackware Relay Coupler [Grunt] Protection Hardened Medium Armor Plating Weapon Improved Remote Datajack Energy Gun AWS/Thermal Energy Cannon Matter Neutralizer Ballistic Gun Assault Rifle Ballistic Cannon Light Cannon Launcher Rocket Launcher Special Weapon Improved Remote Datajack Slashing Weapon Longsword +1 Special Melee Weapon Datajack Build | -11 -10 -10 -10 -9 -8 -8 -8 -8 -7 -7 -7 -7 -6 -6 -6 -6 -5 -5 -5 -5 -4 -4 -3 -3 -3 ------- Run | Yrd Mat Min Exi Min Mat Gar Mat Gar Fac Was Fac Gar Fac Was Fac Gar Fac Gar Fac Gar Fac Gar Res Gar Res Slots Evolved 14 | . . . . . 4 . . . 2 . . . 2 . . . 2 . . . 2 . 2 . . Power 1 | . . . . . . . . . . . . . . . . . 1 . . . . . . . . Propulsion 4 | . . . . . 1 . . . 1 . . . . . . . . . . . 1 . 1 . . Utility 9 | . . . . . 3 . . . 1 . . . 2 . . . 1 . . . 1 . 1 . . Weapon . | . . . . . . . . . . . . . . . . . . . . . . . . . . Parts Attached 234 | . 15 . 1 1 15 9 8 11 6 9 11 9 4 2 6 10 11 13 8 16 1 21 12 23 12 Power 25 | . 2 . . . 2 1 . . 1 1 . . 2 . . 1 2 3 . 1 . 3 . 3 3 Engine 1 | . . . . . 1 . . . . . . . . . . . . . . . . . . . . Core 8 | . 2 . . . 1 . . . 1 . . . 1 . . . 1 . . . . 1 . 1 . Reactor 16 | . . . . . . 1 . . . 1 . . 1 . . 1 1 3 . 1 . 2 . 2 3 Propulsion 33 | . 2 . . . 2 1 2 2 2 3 . 2 . 1 1 . 1 2 1 . . 2 2 6 1 Treads 33 | . 2 . . . 2 1 2 2 2 3 . 2 . 1 1 . 1 2 1 . . 2 2 6 1 Leg . | . . . . . . . . . . . . . . . . . . . . . . . . . . Wheel . | . . . . . . . . . . . . . . . . . . . . . . . . . . Hover . | . . . . . . . . . . . . . . . . . . . . . . . . . . Flight . | . . . . . . . . . . . . . . . . . . . . . . . . . . Utility 134 | . 5 . . . 7 7 4 7 2 5 6 4 2 1 4 7 5 8 7 12 1 14 8 12 6 Device 47 | . 3 . . . 2 3 1 1 . 2 3 . . . 1 2 . 3 2 6 . 6 5 5 2 Storage 5 | . 2 . . . 1 . . . . . 1 . . . . . . . . . . 1 . . . Processor 6 | . . . . . . . . . . . . . . 1 . . 2 . . 1 . . 1 1 . Hackware 52 | . . . . . 2 3 1 5 2 1 2 3 2 . 1 4 3 5 2 4 1 3 1 3 4 Protection 24 | . . . . . 2 1 2 1 . 2 . 1 . . 2 1 . . 3 1 . 4 1 3 . Artifact . | . . . . . . . . . . . . . . . . . . . . . . . . . . Weapon 42 | . 6 . 1 1 4 . 2 2 1 . 5 3 . . 1 2 3 . . 3 . 2 2 2 2 Energy Gun 7 | . 4 . 1 . . . . . . . 1 . . . . . . . . . . . . . 1 Energy Cannon 13 | . . . . . 2 . . . . . 1 3 . . 1 1 2 . . . . 1 . 1 1 Ballistic Gun . | . . . . . . . . . . . . . . . . . . . . . . . . . . Ballistic Cannon 4 | . 1 . . . 1 . . . . . 1 . . . . . . . . . . . 1 . . Launcher 5 | . 1 . . 1 . . 1 . . . . . . . . 1 . . . 1 . . . . . Special Weapon 10 | . . . . . . . . 1 1 . 2 . . . . . 1 . . 2 . 1 1 1 . Impact Weapon . | . . . . . . . . . . . . . . . . . . . . . . . . . . Slashing Weapon 1 | . . . . . 1 . . . . . . . . . . . . . . . . . . . . Piercing Weapon . | . . . . . . . . . . . . . . . . . . . . . . . . . . Special Melee Weapon 2 | . . . . . . . 1 1 . . . . . . . . . . . . . . . . . Unidentified Prototypes 5 | . . . . . . . . . . . . . . . 1 . 1 . . 1 . . 1 1 . Parts Lost 40 | . 1 . . . . . . 2 . . . 2 . . . 1 3 1 1 3 . 2 1 2 21 Power 7 | . . . . . . . . . . . . . . . . . 1 . . . . 1 . . 5 Propulsion 2 | . . . . . . . . . . . . . . . . . . . . . . . . . 2 Utility 25 | . . . . . . . . 1 . . . 2 . . . 1 2 1 1 3 . 1 . 1 12 Weapon 6 | . 1 . . . . . . 1 . . . . . . . . . . . . . . 1 1 2 Highest Loss Streak 19 | . 1 . . . . . . 1 . . . 1 . . . 1 3 1 1 2 . 1 1 1 19 To Critical Strikes 1 | . . . . . . . . . . . . . . . . . . . . . . 1 . . . Average Backups 22 | 6 15 20 19 19 20 24 24 24 24 23 23 23 23 24 23 23 23 23 23 23 23 22 22 23 21 Power 1 | 1 1 1 1 1 1 1 1 . . 1 1 1 2 2 2 1 1 1 2 1 1 1 1 1 2 Propulsion 1 | 4 3 2 2 2 2 3 3 2 2 . 1 1 1 1 1 1 1 1 . 1 1 1 1 1 . Utility 12 | . 5 10 9 8 5 8 10 13 14 13 12 11 11 12 11 15 14 12 12 14 15 16 16 15 13 Weapon 5 | 1 3 5 5 6 7 7 6 5 5 6 6 6 6 7 7 5 4 5 5 4 5 3 3 4 3 Tool/Special . | . . . . . . . . . . . . . . . . . . . . . . . . . . Unused Backups 103 | . 9 . 3 . 4 4 . 8 3 2 3 13 . . 2 7 1 9 1 3 2 7 3 6 13 Power 8 | . 2 . . . 1 . . . 1 1 . . . . . . . 2 . . . . . . 1 Propulsion 9 | . 6 . . . . . . . . 1 . . . . . . . 1 . . . . 1 . . Utility 65 | . 1 . 2 . 3 3 . 6 1 . 2 11 . . 2 4 1 4 . 2 1 7 2 5 8 Weapon 15 | . . . 1 . . 1 . 2 1 . 1 . . . . 2 . 2 1 1 1 . . 1 1 Tool/Special 6 | . . . . . . . . . . . . 2 . . . 1 . . . . . . . . 3 Average Slot Usage (%) 86 | . 98 100 92 89 90 100 99 100 99 64 83 83 83 83 82 80 78 87 85 85 84 78 82 79 68 Core 3 | . 13 14 14 14 3 7 . 7 7 4 . . 1 . . . . 4 . . . . 4 3 . Reactor 4 | . . . . . . 1 9 1 . 2 7 7 4 6 6 6 5 5 11 11 10 9 4 4 7 Treads 17 | . 25 28 28 28 26 27 27 27 29 16 15 15 13 13 12 13 11 11 11 11 10 10 16 14 13 Device 12 | . 13 14 14 14 17 14 23 11 8 5 12 8 6 6 6 6 6 16 9 21 21 16 18 14 15 Storage 7 | . 14 14 14 14 9 9 9 9 7 7 7 7 6 6 6 6 5 5 5 5 5 5 4 4 3 Processor 1 | . . . . . . . . . . . . . . . . . . 5 2 . . . 3 4 1 Hackware 12 | . . . . . 11 12 3 7 13 3 9 12 23 26 22 22 22 14 21 15 21 17 17 16 12 Protection 8 | . . . . . 7 9 9 17 15 7 14 15 13 9 14 9 9 7 7 5 5 6 2 5 2 Energy Gun 2 | . 16 14 13 9 8 . . . . . . . . . . . . . . . . . . . . Energy Cannon 4 | . . . . . . 9 4 5 . 6 7 9 6 6 6 6 5 5 4 5 5 4 3 4 3 Special Weapon 3 | . . . . . . . . 4 4 7 6 4 5 6 6 5 4 4 5 4 5 4 4 3 3 Slashing Weapon 1 | . . . . . . 9 6 6 7 . . . . . . . . . . . . . . . . Peak Build Rating 144 | 6 15 14 29 29 41 44 44 48 48 77 69 78 80 80 87 94 100 118 120 119 122 128 142 144 144 Average Rating 80 | 6 12 14 20 25 36 38 40 42 47 70 65 73 78 77 78 88 92 102 114 115 122 124 136 140 126 On Entrance 69 | 6 6 14 14 29 17 36 44 44 42 48 67 67 76 80 79 80 92 84 112 117 118 122 124 140 138 Avg Prop Armor Cover (%) 5 | . . . . . . . . . . 5 . . . . . . . . . . . . . . . Naked Turns 5 | . . . . . . . . . . . . . . . . . . . . . . . . . 5 Heaviest Build 166 | 14 51 50 54 54 103 115 118 123 116 152 134 130 127 123 134 158 166 159 160 160 155 159 158 161 163 Greatest Support 225 | 20 40 40 40 40 60 60 62 62 84 140 140 150 150 150 145 155 155 155 160 160 160 178 205 225 210 Greatest Overweight (x) 2 | . 1 1 1 1 1 1 1 1 1 2 . . . . 1 1 2 1 1 . . 1 . 1 . Average Overweight (x) . | . . 1 1 1 . 1 1 1 1 1 . . . . . . . . . . . . . . . Largest Inventory Capacity 25 | 8 20 20 20 20 25 25 25 25 25 25 25 25 25 25 25 25 25 25 25 25 25 25 25 25 25 Average Capacity 24 | 8 18 20 20 20 20 25 25 25 25 25 25 25 25 25 25 25 25 25 25 25 25 25 25 25 23 Most Carried 25 | 6 20 20 20 20 25 25 25 25 25 25 25 25 25 25 25 25 25 25 25 25 25 25 25 25 25 Average Carried 23 | 6 15 20 19 19 20 24 24 24 24 23 24 24 24 24 24 24 24 24 24 24 24 24 24 24 22 Final Capacity 25 | 8 20 20 20 20 25 25 25 25 25 25 25 25 25 25 25 25 25 25 25 25 25 25 25 25 5 Final Carried 25 | 6 20 20 20 20 25 25 25 25 25 21 25 25 25 25 25 25 22 25 25 25 25 25 25 24 3 Class Distribution -------------------- 51% | Botlord-Mutant 28% | Bothacker-Mutant 10% | Mutant 4% | Hacker-Mutant 4% | Scavenger-Mutant Dominant Class ---------------- Mutant | -10/Materials Scavenger-Mutant | -10/Mines Mutant | -10/Exiles Mutant | -9/Mines Hacker-Mutant | -8/Materials Hacker-Mutant | -8/Garrison Bothacker-Mutant | -8/Materials Bothacker-Mutant | -8/Garrison Bothacker-Mutant | -7/Factory Bothacker-Mutant | -7/Waste Bothacker-Mutant | -7/Factory Bothacker-Mutant | -7/Garrison Botlord-Mutant | -6/Factory Botlord-Mutant | -6/Waste Botlord-Mutant | -6/Factory Botlord-Mutant | -6/Garrison Botlord-Mutant | -5/Factory Botlord-Mutant | -5/Garrison Botlord-Mutant | -5/Factory Botlord-Mutant | -5/Garrison Botlord-Mutant | -4/Factory Botlord-Mutant | -4/Garrison Botlord-Mutant | -3/Research Botlord-Mutant | -3/Garrison Botlord-Mutant | -3/Research Resources | -11 -10 -10 -10 -9 -8 -8 -8 -8 -7 -7 -7 -7 -6 -6 -6 -6 -5 -5 -5 -5 -4 -4 -3 -3 -3 ----------- Run | Yrd Mat Min Exi Min Mat Gar Mat Gar Fac Was Fac Gar Fac Was Fac Gar Fac Gar Fac Gar Fac Gar Res Gar Res Matter Collected 7567 | 200 385 . . 78 221 110 168 796 152 293 252 305 65 90 165 491 275 667 478 557 . 587 245 770 217 Remotely . | . . . . . . . . . . . . . . . . . . . . . . . . . . Salvage Created 12459 | . 697 . . . 642 94 221 532 265 1255 221 1150 41 . 339 414 541 394 265 941 . 1051 368 2645 383 Parts 553 | . 50 . . . 34 4 25 32 21 19 17 60 2 . 21 22 20 26 7 32 . 33 15 90 23 Haulers Intercepted 3 | . 2 . . . . . . . . . . . . . . . 1 . . . . . . . . Recyclers Shooed 5 | . 2 . . . . . . . 1 . . . . . . . 1 . . . . . 1 . . Parts Field Recycled . | . . . . . . . . . . . . . . . . . . . . . . . . . . Retrieved Matter . | . . . . . . . . . . . . . . . . . . . . . . . . . . Parts Self-Destructed . | . . . . . . . . . . . . . . . . . . . . . . . . . . Prevented . | . . . . . . . . . . . . . . . . . . . . . . . . . . Parts Restored . | . . . . . . . . . . . . . . . . . . . . . . . . . . Kills | -11 -10 -10 -10 -9 -8 -8 -8 -8 -7 -7 -7 -7 -6 -6 -6 -6 -5 -5 -5 -5 -4 -4 -3 -3 -3 ------- Run | Yrd Mat Min Exi Min Mat Gar Mat Gar Fac Was Fac Gar Fac Was Fac Gar Fac Gar Fac Gar Fac Gar Res Gar Res Combat Hostiles Destroyed 213 | . 17 . . 3 12 1 12 18 10 5 4 17 1 . 6 11 9 15 4 21 . 14 3 26 4 Melee 14 | . . . . . 4 . 2 5 1 . . 2 . . . . . . . . . . . . . Guns 23 | . 14 . . . 8 . . . . . . . . . . . . . . . . . . . 1 Cannons 112 | . . . . 1 . 1 3 5 1 3 4 8 . . 6 6 6 12 3 14 . 9 3 24 3 AOE 49 | . 3 . . 2 . . 7 8 8 . . 6 1 . . 4 . . . 6 . 4 . . . Classes Destroyed 22 | . 7 . . 1 2 . 1 1 1 1 1 2 . . . . . 1 1 . . 2 . 1 . Worker 5 | . 2 . . . 1 . . . 1 . . . . . . . 1 . . . . . . . . Builder 8 | . 1 . . . . . 1 . 1 . 2 . . . . . . . . . . . 1 . 2 Tunneler 5 | . 1 . . . . . . . 1 . 1 . . . . . . . 1 . . . . . 1 Hauler 3 | . 2 . . . . . . . . . . . . . . . 1 . . . . . . . . Mechanic 1 | . . . . . . . 1 . . . . . . . . . . . . . . . . . . Operator 4 | . 3 . . . 1 . . . . . . . . . . . . . . . . . . . . Watcher 5 | . . . . . . . . . 1 . . . . . 1 . 2 . . . . . . . 1 Swarmer 53 | . 6 . . . . 1 8 6 7 1 1 7 . . . 3 . 9 . . . 3 . 1 . Cutter 5 | . . . . . . . . . . . . . . . . . . . . . . 3 . 2 . Saboteur 1 | . . . . . . . . . . . . . . . . . . 1 . . . . . . . Grunt 75 | . 11 . . . 6 . 2 3 3 . 1 4 1 . 2 4 3 3 3 16 . 6 . 7 . Brawler 1 | . . . . . . . . . . . 1 . . . . . . . . . . . . . . Duelist 6 | . . . . . 1 . . . . . . 1 . . . . . . . . . 1 . 3 . Protector 1 | . . . . . . . . . . . . . . . . . . . . . . 1 . . . Sentry 19 | . . . . . 5 . 2 5 . . . . . . 1 3 . . . . . 1 1 1 . Demolisher 2 | . . . . . . . . . . . . 1 . . . . . . . . . 1 . . . Hunter 17 | . . . . . . . . . . . . 1 . . 2 . 2 2 . 2 . . 2 5 1 Programmer 29 | . . . . . . . . 4 . . 1 3 . . 1 2 4 . 1 3 . . . 7 3 Behemoth 5 | . . . . . . . . . . . . . . . . . . . 1 1 . 2 1 . . Compactor 4 | . . . . . . . . . . 4 . . . . . . . . . . . . . . . Assembled 3 | . . . . 3 . . . . . . . . . . . . . . . . . . . . . Infiltrator 2 | . . . . . . . . . . . . . . . . . . . . . . . . 2 . Commander 1 | . . . . . . 1 . . . . . . . . . . . . . . . . . . . Best Kill Streak 15 | . 4 . . 2 3 1 6 6 6 1 3 6 1 . 4 4 2 4 1 15 . 4 2 5 5 Combat Bots Only 15 | . 3 . . 2 3 1 4 6 4 1 2 6 1 . 2 4 2 4 1 15 . 4 2 5 4 Max Kills in Single Turn 5 | . 2 . . 1 1 1 3 3 5 1 2 3 1 . 1 4 1 1 1 2 . 3 1 1 1 Gunslinging . | . . . . . . . . . . . . . . . . . . . . . . . . . . Exploded 4 | . 2 . . 1 . . 2 3 3 . . 3 1 . . 4 . . . 2 . 2 . . . Melee 1 | . . . . . 1 . 1 1 1 . . 1 . . . . . . . . . . . . . Uniques/NPCs Destroyed . | . . . . . . . . . . . . . . . . . . . . . . . . . . Combat | -11 -10 -10 -10 -9 -8 -8 -8 -8 -7 -7 -7 -7 -6 -6 -6 -6 -5 -5 -5 -5 -4 -4 -3 -3 -3 -------- Run | Yrd Mat Min Exi Min Mat Gar Mat Gar Fac Was Fac Gar Fac Was Fac Gar Fac Gar Fac Gar Fac Gar Res Gar Res Hostile Shots Fired 1556 | . 73 . . . 23 1 51 91 32 . 36 67 1 . 9 127 104 91 80 158 . 104 32 165 311 Missed 377 | . 22 . . . 4 1 13 28 13 . 14 11 1 . 1 48 33 19 20 35 . 18 8 33 55 Hits 1179 | . 51 . . . 19 . 38 63 19 . 22 56 . . 8 79 71 72 60 123 . 86 24 132 256 Melee 16 | . . . . . . . . . . . 1 3 . . . . . 1 . . . . . 11 . Projectile 1163 | . 51 . . . 19 . 38 63 19 . 21 53 . . 8 79 71 71 60 123 . 86 24 121 256 AOE 16 | . . . . . . . . . . . . 12 . . . . . . . . . 4 . . . Critical Strikes 69 | . . . . . 1 . 2 5 . . 1 2 . . 2 3 7 4 5 9 . 3 . 11 14 Actively Blocked 8 | . . . . . . . . . . . . . . . . . . . . 1 . . . 1 6 Part Disruptions 1 | . . . . . . . . . . . . . . . . . . . . . . . . . 1 Damage Taken 21360 | . 507 . . . 459 . 331 714 345 6 348 1286 . 52 178 1099 1326 555 1255 1950 . 1378 540 2699 6332 Core 2389 | . 68 . . . 247 . 32 52 1 . 29 34 . . . 57 106 29 110 152 . 167 9 168 1128 Absorbed by Shields 2841 | . . . . . 127 . 136 270 49 . 13 64 . . . 76 . 540 136 264 . 723 58 327 58 Reduced by Siege Mode 1234 | . . . . . . . . . . . . 60 . . . . . 7 68 301 . 25 21 150 602 Redirected to Shielding 110 | . . . . . . . . . . . . . . . . . . . 41 69 . . . . . Ignored by Resistances 282 | . . . . . . . . . . . . . . . . . 174 . . 21 . 87 . . . Regen/Repaired (Parts) 1766 | . 90 . . . . . . . . . . . 126 22 181 276 196 . . . . . . 786 89 Core Remaining (%) 77 | 100 . . . 72 . . . 39 . . . 90 . . . 93 . . . 60 . 85 . . . Volleys Fired 1560 | . 69 . . 5 8 4 16 36 23 129 32 98 7 17 29 127 88 114 70 127 2 132 34 310 83 Largest 2 | . 2 . . 1 1 1 2 2 1 1 2 2 1 1 1 1 2 2 1 2 1 1 1 1 1 Hottest 210 | . 90 . . 33 120 75 112 120 75 75 155 60 30 30 90 105 210 210 105 210 10 113 113 113 120 Shots Fired 1758 | . 136 . . 5 45 4 23 45 23 128 39 142 7 17 29 128 104 122 70 137 2 132 34 309 77 Gun 167 | . 124 . . . 37 . . . . . 4 . . . . . . . . . . . . . 2 Cannon 1281 | . 10 . . 1 8 4 14 28 8 119 23 128 3 10 15 92 79 98 43 120 . 111 28 267 72 Launcher 39 | . 2 . . 4 . . 9 6 5 . . 3 . . . 3 . . . 5 . 2 . . . Special 271 | . . . . . . . . 11 10 9 12 11 4 7 14 33 25 24 27 12 2 19 6 42 3 Kinetic 84 | . 58 . . 1 6 . 7 9 . . 3 . . . . . . . . . . . . . . Thermal 1362 | . 76 . . . 39 4 7 19 8 119 24 128 3 10 15 92 79 98 43 120 . 111 28 267 72 Explosive 39 | . 2 . . 4 . . 9 6 5 . . 3 . . . 3 . . . 5 . 2 . . . Electromagnetic 2 | . . . . . . . . . . . . . . . . . . . . . . . . . 2 Robot Hit Streak 27 | . 6 . . 1 17 1 10 13 5 12 9 27 5 6 8 14 11 15 12 23 1 21 9 20 17 Robot Miss Streak 8 | . 3 . . 3 1 3 3 2 2 3 2 2 2 2 2 4 3 3 3 2 1 6 3 4 8 Penetration Max . | . . . . . . . . . . . . . . . . . . . . . . . . . . Secondary Targets 1 | . 1 . . . . . . . . . . . . . . . . . . . . . . . . Max Gunslinging Chain 1 | . 1 . . . . . . . . . . . . . . . . . . . . . . . . Capacitor 455 | . . . . . . . . . . . . . . . . . . . . . . 111 28 267 49 Autonomous 38 | . . . . . 38 . . . . . . . . . . . . . . . . . . . . Shots Hit Robots 1116 | . 81 . . 1 42 2 15 42 15 97 24 98 4 13 21 65 69 54 45 68 1 85 21 204 49 Core Hits 397 | . 45 . . 4 16 2 17 24 15 11 11 41 . . 9 22 14 21 8 37 . 25 6 58 11 Critical Kills 16 | . . . . . . . . . . 2 1 1 . . . 1 1 3 1 . . 2 1 3 . Critical Parts Destroyed . | . . . . . . . . . . . . . . . . . . . . . . . . . . Critical Strikes 23 | . 4 . . . . . . . . 2 1 2 . . . 1 2 3 1 . . 3 1 3 . Burn 3 | . 3 . . . . . . . . . . . . . . . . . . . . . . . . Meltdown 16 | . . . . . . . . . . 2 1 1 . . . 1 1 3 1 . . 2 1 3 . Blast 1 | . 1 . . . . . . . . . . . . . . . . . . . . . . . . Sever 3 | . . . . . . . . . . . . 1 . . . . 1 . . . . 1 . . . Melee Attacks 94 | . . . . . 10 13 12 38 2 . . 8 . . . . 1 4 . . . 6 . . . Impact . | . . . . . . . . . . . . . . . . . . . . . . . . . . Slashing 84 | . . . . . 10 13 8 32 2 . . 8 . . . . 1 4 . . . 6 . . . Piercing . | . . . . . . . . . . . . . . . . . . . . . . . . . . Sneak Attacks 9 | . . . . . 1 1 . . . . . . . . . . 1 . . . . 6 . . . Combat Hostiles . | . . . . . . . . . . . . . . . . . . . . . . . . . . Follow-up Attacks . | . . . . . . . . . . . . . . . . . . . . . . . . . . Damage Inflicted 37344 | . 1260 14 . 175 1457 113 1238 1724 1021 2600 530 2864 26 217 427 1915 2026 1368 1187 3226 . 3770 716 7236 2234 Guns 2138 | . 1002 . . . 1006 . . . . . 75 . . . . . . . . . . . . . 55 Cannons 27771 | . 103 . . 19 . 27 309 708 125 2600 455 2178 26 217 427 1361 1893 1340 1043 2272 . 2640 668 7216 2144 Explosions 4892 | . 131 . . 148 . . 708 636 779 . . 392 . . . 554 . . . 954 . 590 . . . Melee 2116 | . . . . . 427 86 221 380 50 . . 294 . . . . 90 28 . . . 540 . . . Ramming 427 | . 24 14 . 8 24 . . . 67 . . . . . . . 43 . 144 . . . 48 20 35 Kinetic 938 | . 530 . . 19 . . 124 230 . . 35 . . . . . . . . . . . . . . Thermal 29251 | . 575 . . . 1006 27 185 478 460 2600 495 2178 26 217 427 1361 1893 1340 1043 2272 . 2640 668 7216 2144 Explosive 4557 | . 131 . . 148 . . 708 636 444 . . 392 . . . 554 . . . 954 . 590 . . . Electromagnetic 55 | . . . . . . . . . . . . . . . . . . . . . . . . . 55 Impact . | . . . . . . . . . . . . . . . . . . . . . . . . . . Slashing 2116 | . . . . . 427 86 221 380 50 . . 294 . . . . 90 28 . . . 540 . . . Piercing . | . . . . . . . . . . . . . . . . . . . . . . . . . . Highest Corruption 75 | . . . . . . . . 2 3 11 11 . . 7 8 6 7 12 16 16 . . . 8 75 Average Corruption 8 | . . . . . . . . 1 2 10 6 . . 4 6 5 2 11 13 16 . . . 4 17 Corruption Purged 16 | . . . . . . . . . . . 11 . . . 5 . . . . . . . . . . Corruption Blocked 8 | . . . . . . . . . . . . . . 8 . . . . . . . . . . . Effects 445 | . . . . . . . . 19 9 45 4 . . 8 16 33 7 77 62 64 . . . 61 40 Message Errors 103 | . . . . . . . . 3 2 16 1 . . 1 3 12 . 18 19 15 . . . 6 7 Matter Fused 105 | . . . . . . . . 5 3 8 . . . 1 5 6 1 22 16 16 . . . 15 7 Heat Flow Errors 46 | . . . . . . . . 3 1 5 1 . . 3 2 1 . 6 3 6 . . . 10 5 Energy Discharges 46 | . . . . . . . . 1 2 5 . . . 1 4 4 2 4 8 4 . . . 5 6 Parts Rejected 7 | . . . . . . . . . 1 1 . . . . . 1 . 1 2 . . . . 1 . Parts Fused 5 | . . . . . . . . . . . . . . . . . . . . . . . . 5 . Data Loss (minor) 48 | . . . . . . . . 5 . 1 1 . . 1 2 5 1 8 5 9 . . . 5 5 Data Loss (major) 27 | . . . . . . . . 2 . 2 1 . . . . 1 2 7 1 3 . . . 6 2 Misfires 17 | . . . . . . . . . . 2 . . . . . 1 1 6 1 3 . . . 3 . Alerts 11 | . . . . . . . . . . 1 . . . 1 . 2 . . 3 2 . . . 1 1 Misdirections 5 | . . . . . . . . . . 1 . . . . . . . . 3 . . . . . 1 Weapon Failures 25 | . . . . . . . . . . 3 . . . . . . . 5 1 6 . . . 4 6 Overload Shots . | . . . . . . . . . . . . . . . . . . . . . . . . . . Overflow Damage 1256 | . . . . 16 58 . 69 14 99 . . 68 . . . 53 167 12 55 111 . 124 59 307 44 Projectiles 863 | . . . . 16 . . . 2 . . . 21 . . . 51 167 12 8 111 . 84 41 307 43 Explosions 236 | . . . . . . . 69 10 99 . . 42 . . . 2 . . . . . 14 . . . Melee 157 | . . . . . 58 . . 2 . . . 5 . . . . . . 47 . . 26 18 . 1 Knockbacks 4 | . 1 . . . . . . . . . . . . . . . . . 1 . . . 1 . 1 Impact 3 | . . . . . . . . . . . . . . . . . . . 1 . . . 1 . 1 Kinetic 1 | . 1 . . . . . . . . . . . . . . . . . . . . . . . . Secondary . | . . . . . . . . . . . . . . . . . . . . . . . . . . Self-Inflicted Damage 240 | . . . . . . . 34 57 41 . . 87 . . . 17 . . . 4 . . . . . Shots 9 | . . . . . . . 2 2 1 . . 2 . . . 1 . . . 1 . . . . . Rammed 32 | . 8 3 . 2 2 . . . 8 . . . . . . . 2 . 3 . . . 1 1 2 Targets Rammed 37 | . 9 3 . 2 2 . . . 10 . . . . . . . 4 . 3 . . . 1 1 2 Kicked . | . . . . . . . . . . . . . . . . . . . . . . . . . . Crushed 5 | . 1 . . . . . . . 2 . . . . . . . 2 . . . . . . . . Highest Temperature 365 | . 36 . . . 88 . 9 300 231 332 108 . . 250 227 243 315 319 328 335 . 198 195 348 365 Average Temperature 103 | . 11 . . . 38 . 4 101 124 155 28 . . 110 44 52 89 67 97 106 . 100 95 117 128 Received Heat Transfer 2898 | . 177 . . . 97 . 60 233 33 . 39 135 . . 54 188 333 76 185 717 . 396 27 148 . Effects 10 | . . . . . . . . . . 2 . . . 1 . . . 1 3 . . . . 2 1 Energy Bleed 1 | . . . . . . . . . . . . . . . . . . . . . . . . 1 . Interference 6 | . . . . . . . . . . 1 . . . 1 . . . . 2 . . . . 1 1 Matter Decay 1 | . . . . . . . . . . . . . . . . . . . 1 . . . . . . Short Circuit 1 | . . . . . . . . . . 1 . . . . . . . . . . . . . . . Damage (minor) 1 | . . . . . . . . . . . . . . . . . . 1 . . . . . . . Siege Activations 22 | . . . . . . . . . . . . 1 . . . . . 2 1 4 . 4 1 7 2 Total Turns 517 | . . . . . . . . . . . . 52 . . . . . 46 20 136 . 53 17 94 99 Longest Duration 87 | . . . . . . . . . . . . 52 . . . . . 28 20 83 . 31 17 50 87 Martial Activations . | . . . . . . . . . . . . . . . . . . . . . . . . . . Shielding Activations . | . . . . . . . . . . . . . . . . . . . . . . . . . . Robots Disrupted . | . . . . . . . . . . . . . . . . . . . . . . . . . . Combat Hostiles . | . . . . . . . . . . . . . . . . . . . . . . . . . . Robots Corrupted 3 | . . . . . . . . . . . . . . . . . . . 1 . . . 1 . 1 Combat Hostiles . | . . . . . . . . . . . . . . . . . . . . . . . . . . Parts Fried 6 | . . . . . . . . . 1 1 . . . . . . . . 2 . . . 2 . . Impact Corruptions 4 | . . . . . . . . . . . . . . . . . . . 2 . . . 1 . 1 Robots Melted 19 | . . . . . . . . . . 2 1 1 . . . 1 3 3 1 1 . 2 1 3 . Combat Hostiles 15 | . . . . . . . . . . 2 . 1 . . . 1 3 3 1 1 . 1 . 2 . Parts Melted 66 | . 5 . . . 3 . . 1 1 2 1 3 . . . 4 5 4 1 2 . 1 4 25 4 Heat Transferred 31156 | . 1889 . . . 1258 37 259 621 435 3848 767 2515 37 296 650 1820 1813 1274 999 2202 . 2386 591 6306 1153 Parts Sabotaged . | . . . . . . . . . . . . . . . . . . . . . . . . . . Parts Stolen . | . . . . . . . . . . . . . . . . . . . . . . . . . . Parts Stripped . | . . . . . . . . . . . . . . . . . . . . . . . . . . Power Chain Reactions . | . . . . . . . . . . . . . . . . . . . . . . . . . . Alert | -11 -10 -10 -10 -9 -8 -8 -8 -8 -7 -7 -7 -7 -6 -6 -6 -6 -5 -5 -5 -5 -4 -4 -3 -3 -3 ------- Run | Yrd Mat Min Exi Min Mat Gar Mat Gar Fac Was Fac Gar Fac Was Fac Gar Fac Gar Fac Gar Fac Gar Res Gar Res Maximum Alert Level 5 | . . . . . . 2 2 4 3 1 . 4 2 1 . 3 2 3 2 3 2 3 2 5 3 Low Security (%) 41 | 100 100 100 . 100 100 65 12 . . 91 100 25 . 81 100 17 91 25 48 . . . 68 7 . Level 1 14 | . . . . . . 26 29 15 . 8 . 22 . 18 . 19 . 30 42 4 . 32 . 18 . Level 2 22 | . . . . . . 7 58 32 94 . . 25 100 . . 41 8 39 8 19 100 33 31 27 12 Level 3 17 | . . . . . . . . 36 5 . . 17 . . . 21 . 4 . 75 . 34 . 23 87 Level 4 3 | . . . . . . . . 14 . . . 9 . . . . . . . . . . . 15 . Level 5 . | . . . . . . . . . . . . . . . . . . . . . . . . 8 . High Security . | . . . . . . . . . . . . . . . . . . . . . . . . . . Max Security . | . . . . . . . . . . . . . . . . . . . . . . . . . . Peak Influence 1735 | . 101 12 . 11 125 427 468 1315 716 248 65 1215 694 214 73 881 456 740 541 1032 541 921 544 1735 975 Initial 975 | . . 12 . . . 76 208 278 690 248 . . 637 214 71 39 456 59 388 368 541 343 517 . 975 Average 395 | . 38 1 . . 23 171 373 731 638 62 7 476 644 167 32 491 97 367 206 769 517 589 187 765 821 Influence Increases 12114 | . 528 . . 17 338 351 431 1117 444 20 144 1335 87 8 217 1021 385 851 950 844 . 738 101 1825 362 Destroy 0b10 Robot/C 5205 | . 340 . . . 240 80 260 400 240 20 80 540 40 . 120 480 240 370 360 375 . 255 45 570 150 Destroy 0b10 Robot/NC 268 | . 45 . . . 10 . 10 . 25 . 15 30 . . 5 . 20 . 56 . . 4 4 28 16 Destroy Leader 744 | . 84 . . . 70 . 70 30 42 . 10 40 10 . 42 40 36 32 92 40 . 40 8 40 18 Allied During Kill 1110 | . . . . . . 12 19 7 6 . . 204 36 . 3 112 9 41 192 38 . 15 2 296 118 Successful Hack 214 | . 18 . . . 12 12 . . 28 . 38 21 . . 45 . . 11 14 . . . . 9 6 Disable Machine 426 | . . . . . . . 15 15 45 . . 15 . . . 15 30 15 156 24 . 12 24 36 24 Anti-Garrison Action 2919 | . . . . . . 200 . 600 . . . 400 . . . 250 . 264 . 227 . 302 . 676 . Destroy Structure 1132 | . 11 . . 17 6 47 42 65 58 . 1 85 1 8 2 109 50 106 80 116 . 110 18 170 30 Lose Combat Pursuer 96 | . 30 . . . . . 15 . . . . . . . . 15 . 12 . 24 . . . . . Influence Decreases 11569 | . 497 31 . 17 220 42 429 231 1049 730 143 121 688 520 262 208 1170 196 1164 338 541 308 1022 90 1552 Entered New Map 5299 | . . 19 . . . 42 219 151 625 462 . 1 578 400 31 18 414 26 352 158 491 148 404 . 760 Time Decay 3604 | . 487 12 . 17 220 . 170 . 404 268 143 . 110 100 211 . 418 . 429 . 50 . 203 . 362 Lost Part 400 | . 10 . . . . . . 20 . . . 20 . . . 10 30 10 10 30 . 20 10 20 210 Lost Ally 1341 | . . . . . . . 40 60 20 . . 100 . 20 20 180 33 160 98 150 . 140 30 70 220 Purge Threat 925 | . . . . . . . . . . . . . . . . . 275 . 275 . . . 375 . . Squads Dispatched 30 | . 3 . . . 1 . 1 . 5 . 2 . . . 2 . 5 . 4 . . . 2 . 5 Investigation 2 | . . . . . . . . . . . . . . . . . 1 . 1 . . . . . . Extermination 9 | . . . . . . . . . 1 . 2 . . . 1 . 2 . 1 . . . 1 . 1 Reinforcement 13 | . 3 . . . 1 . 1 . 2 . . . . . 1 . 2 . 1 . . . 1 . 1 Assault 5 | . . . . . . . . . 2 . . . . . . . . . . . . . . . 3 Garrison 1 | . . . . . . . . . . . . . . . . . . . 1 . . . . . . Intercept . | . . . . . . . . . . . . . . . . . . . . . . . . . . Searches Triggered . | . . . . . . . . . . . . . . . . . . . . . . . . . . Unchained Authorized 2 | . . . . . . . . . . . . . . . . . . . . . . . 1 . 1 Construction Impeded 2 | . . . . . 1 . . . 1 . . . . . . . . . . . . . . . . Haulers Reinforced 1 | . . . . . . . . . . . . . . . . . 1 . . . . . . . . Active Scanning Responses . | . . . . . . . . . . . . . . . . . . . . . . . . . . Cargo Convoy Interrupts . | . . . . . . . . . . . . . . . . . . . . . . . . . . Stealth | -11 -10 -10 -10 -9 -8 -8 -8 -8 -7 -7 -7 -7 -6 -6 -6 -6 -5 -5 -5 -5 -4 -4 -3 -3 -3 --------- Run | Yrd Mat Min Exi Min Mat Gar Mat Gar Fac Was Fac Gar Fac Was Fac Gar Fac Gar Fac Gar Fac Gar Res Gar Res Distress Signals 15 | . 4 . . 2 . . 2 . 2 . . . . . 1 . 1 . 1 . . . . . 2 Communications Jammed 213 | . . . . . . . . . 15 . . . . . 12 . 22 . 146 . . 7 . . 11 Distress Signals 212 | . . . . . . . . . 15 . . . . . 11 . 22 . 146 . . 7 . . 11 Times Spotted 455 | . 34 . . 2 14 5 19 28 22 4 12 37 3 5 8 30 21 44 38 32 . 29 5 42 21 Peak Tracking Total 12 | . 4 . . 2 4 2 6 7 5 2 3 9 3 3 3 5 5 6 5 12 . 4 2 5 6 Tactical Retreats 7 | . 2 . . . . . 1 . . . . . . . . 1 . 1 . 2 . . . . . Traps | -11 -10 -10 -10 -9 -8 -8 -8 -8 -7 -7 -7 -7 -6 -6 -6 -6 -5 -5 -5 -5 -4 -4 -3 -3 -3 ------- Run | Yrd Mat Min Exi Min Mat Gar Mat Gar Fac Was Fac Gar Fac Was Fac Gar Fac Gar Fac Gar Fac Gar Res Gar Res Traps Triggered 32 | . . . . . 1 3 . 7 2 . 1 . 1 . 1 2 . 8 . . . 2 1 2 1 Indirectly . | . . . . . . . . . . . . . . . . . . . . . . . . . . Trap Hack Attempts . | . . . . . . . . . . . . . . . . . . . . . . . . . . Triggered . | . . . . . . . . . . . . . . . . . . . . . . . . . . Disarmed 4 | . . . . . 4 . . . . . . . . . . . . . . . . . . . . Reprogrammed . | . . . . . . . . . . . . . . . . . . . . . . . . . . Reused . | . . . . . . . . . . . . . . . . . . . . . . . . . . Traps Extracted . | . . . . . . . . . . . . . . . . . . . . . . . . . . Installed . | . . . . . . . . . . . . . . . . . . . . . . . . . . Triggered . | . . . . . . . . . . . . . . . . . . . . . . . . . . Machines | -11 -10 -10 -10 -9 -8 -8 -8 -8 -7 -7 -7 -7 -6 -6 -6 -6 -5 -5 -5 -5 -4 -4 -3 -3 -3 ---------- Run | Yrd Mat Min Exi Min Mat Gar Mat Gar Fac Was Fac Gar Fac Was Fac Gar Fac Gar Fac Gar Fac Gar Res Gar Res Machines Disabled 63 | . . . . . . 2 1 5 3 . . 6 . . . 4 2 4 13 6 . 6 2 7 2 Max in Single Turn 2 | . . . . . . 1 1 1 2 . . 1 . . . 1 1 1 . 1 . 1 1 1 1 Garrison Access 1 | . . . . . . . . . . . . . . . . . . . 1 . . . . . . Garrison Relay 28 | . . . . . . 2 . 4 . . . 5 . . . 3 . 3 . 4 . 4 . 3 . Machines Repaired . | . . . . . . . . . . . . . . . . . . . . . . . . . . Machines Dismantled . | . . . . . . . . . . . . . . . . . . . . . . . . . . Machines Sabotaged . | . . . . . . . . . . . . . . . . . . . . . . . . . . Overloaded Fab Kills . | . . . . . . . . . . . . . . . . . . . . . . . . . . Hacking | -11 -10 -10 -10 -9 -8 -8 -8 -8 -7 -7 -7 -7 -6 -6 -6 -6 -5 -5 -5 -5 -4 -4 -3 -3 -3 --------- Run | Yrd Mat Min Exi Min Mat Gar Mat Gar Fac Was Fac Gar Fac Was Fac Gar Fac Gar Fac Gar Fac Gar Res Gar Res Machines Accessed 57 | . 6 . 1 . 4 3 1 2 3 . 3 4 1 . 4 2 6 2 6 1 2 2 2 1 1 Terminals 33 | . 5 . . . 3 3 . 2 3 . 1 4 . . . 2 . 2 1 1 1 2 1 1 1 Fabricators 5 | . . . . . . . . . . . 1 . 1 . . . 1 . 2 . . . . . . Repair Stations 3 | . 1 . . . . . . . . . . . . . 1 . 1 . . . . . . . . Recycling Units 2 | . . . . . . . . . . . . . . . . . 1 . 1 . . . . . . Scanalyzers 4 | . . . . . . . . . . . . . . . 2 . 2 . . . . . . . . Garrison Access 9 | . . . . . 1 . 1 . . . 1 . . . 1 . 1 . 2 . 1 . 1 . . Total Hacks 122 | . 20 . 1 . 13 6 1 2 7 . 6 9 2 . 10 4 12 3 10 2 2 4 3 3 2 Successful 47 | . 5 . 1 . 9 2 1 . 2 . 3 2 . . 7 . 3 1 7 . 1 . 1 1 1 Failed 74 | . 15 . . . 3 4 . 2 5 . 3 7 2 . 3 4 9 2 3 2 1 4 2 2 1 Catastrophic 9 | . 3 . . . 1 1 . 2 . . . 1 . . . . 1 . . . . . . . . Database Lockouts 1 | . . . . . 1 . . . . . . . . . . . . . . . . . . . . Manual 35 | . 10 . 1 . 10 3 . . . . 2 1 . . . . 4 . . . 1 . . 2 1 Terminals 78 | . 17 . . . 12 6 . 2 7 . 2 9 . . . 4 . 3 2 2 1 4 2 3 2 Fabricators 12 | . . . . . . . . . . . 3 . 2 . . . 4 . 3 . . . . . . Repair Stations 9 | . 3 . . . . . . . . . . . . . 3 . 3 . . . . . . . . Recycling Units 3 | . . . . . . . . . . . . . . . . . 1 . 2 . . . . . . Scanalyzers 9 | . . . . . . . . . . . . . . . 6 . 3 . . . . . . . . Garrison Access 10 | . . . . . 1 . 1 . . . 1 . . . 1 . 1 . 3 . 1 . 1 . . Terminal Hacks 21 | . 2 . 1 . 7 2 . . 2 . 1 2 . . . . . 1 1 . . . . 1 1 Part Schematic 1 | . 1 . . . . . . . . . . . . . . . . . . . . . . . . Robot Schematic 1 | . . . . . . . . . 1 . . . . . . . . . . . . . . . . Robot Analysis 3 | . . . . . 3 . . . . . . . . . . . . . . . . . . . . Prototype ID Bank 1 | . . . . . . . . . 1 . . . . . . . . . . . . . . . . Open Door 2 | . . . . . . 1 . . . . . 1 . . . . . . . . . . . . . Branch Access Points 1 | . . . . . . . . . . . . . . . . . . . . . . . . . 1 Emergency Access Points 2 | . . . . . . . . . . . . 1 . . . . . . . . . . . 1 . Garrison Index 1 | . . . . . 1 . . . . . . . . . . . . . . . . . . . . Locate Traps 1 | . . . . . 1 . . . . . . . . . . . . . . . . . . . . Disarm Traps 1 | . . . . . 1 . . . . . . . . . . . . . . . . . . . . Hauler Manifests 3 | . 1 . . . . . . . . . 1 . . . . . . . 1 . . . . . . Registered Components 1 | . . . . . 1 . . . . . . . . . . . . . . . . . . . . Garrison Registry 2 | . . . . . . 1 . . . . . . . . . . . 1 . . . . . . . Proto ID Catalog 1 | . . . 1 . . . . . . . . . . . . . . . . . . . . . . Fabricator Hacks 3 | . . . . . . . . . . . . . . . . . . . 3 . . . . . . Load Schematic 1 | . . . . . . . . . . . . . . . . . . . 1 . . . . . . Build 2 | . . . . . . . . . . . . . . . . . . . 2 . . . . . . Repair Station Hacks 4 | . 2 . . . . . . . . . . . . . 2 . . . . . . . . . . Scan Component 2 | . 1 . . . . . . . . . . . . . 1 . . . . . . . . . . Repair 2 | . 1 . . . . . . . . . . . . . 1 . . . . . . . . . . Recycling Unit Hacks . | . . . . . . . . . . . . . . . . . . . . . . . . . . Scanalyzer 6 | . . . . . . . . . . . . . . . 4 . 2 . . . . . . . . Insert Component 3 | . . . . . . . . . . . . . . . 3 . . . . . . . . . . Analyze 1 | . . . . . . . . . . . . . . . 1 . . . . . . . . . . Retrieve Study 2 | . . . . . . . . . . . . . . . . . 2 . . . . . . . . Garrison Access Hacks 10 | . . . . . 1 . 1 . . . 1 . . . 1 . 1 . 3 . 1 . 1 . . Unlock Access 8 | . . . . . 1 . 1 . . . 1 . . . 1 . 1 . 1 . 1 . 1 . . Seal Access 1 | . . . . . . . . . . . . . . . . . . . 1 . . . . . . Coupler Status 1 | . . . . . . . . . . . . . . . . . . . 1 . . . . . . Unauthorized Hacks 3 | . 1 . . . 1 . . . . . 1 . . . . . . . . . . . . . . Terminals 2 | . 1 . . . 1 . . . . . . . . . . . . . . . . . . . . Botnet 1 | . . . . . 1 . . . . . . . . . . . . . . . . . . . . Operators 1 | . 1 . . . . . . . . . . . . . . . . . . . . . . . . Fabricators 1 | . . . . . . . . . . . 1 . . . . . . . . . . . . . . Haulers 1 | . . . . . . . . . . . 1 . . . . . . . . . . . . . . Repair Stations . | . . . . . . . . . . . . . . . . . . . . . . . . . . Recycling Units . | . . . . . . . . . . . . . . . . . . . . . . . . . . Scanalyzers . | . . . . . . . . . . . . . . . . . . . . . . . . . . Garrison Access . | . . . . . . . . . . . . . . . . . . . . . . . . . . Data Cores Recovered 1 | . . . . . 1 . . . . . . . . . . . . . . . . . . . . Used . | . . . . . . . . . . . . . . . . . . . . . . . . . . Hacking Detections 46 | . 6 . . . 3 3 . 2 3 . 2 3 1 . 4 2 5 2 3 1 2 2 1 1 . Full Trace Events 4 | . 1 . . . . . . . . . . 1 . . . . 1 . 1 . . . . . . Feedback Events . | . . . . . . . . . . . . . . . . . . . . . . . . . . Feedback Blocked . | . . . . . . . . . . . . . . . . . . . . . . . . . . Robot Schematics Acquired 1 | . . . . . . . . . 1 . . . . . . . . . . . . . . . . Robots Built 2 | . . . . . . . . . . . . . . . . . . . 2 . . . . . . Authchips . | . . . . . . . . . . . . . . . . . . . . . . . . . . Time 169 | . . . . . . . . . . . . . . . . . . . 169 . . . . . . Total Robot Build Rating 12 | . . . . . . . . . . . . . . . . . . . 12 . . . . . . Part Schematics Acquired 2 | . 1 . . . . . . . . . . . . . 1 . . . . . . . . . . Parts Built 1 | . . . . . . . . . . . . . . . . . . . 1 . . . . . . Authchips . | . . . . . . . . . . . . . . . . . . . . . . . . . . Time 204 | . . . . . . . . . . . . . . . . . . . 204 . . . . . . Total Part Build Rating 8 | . . . . . . . . . . . . . . . . . . . 8 . . . . . . Part Studies Acquired 2 | . . . . . . . . . . . . . . . . . 2 . . . . . . . . Parts Repaired 2 | . 1 . . . . . . . . . . . . . 1 . . . . . . . . . . Time 88 | . 26 . . . . . . . . . . . . . 62 . . . . . . . . . . Parts Recycled . | . . . . . . . . . . . . . . . . . . . . . . . . . . Recycled Matter . | . . . . . . . . . . . . . . . . . . . . . . . . . . Retrieved Matter . | . . . . . . . . . . . . . . . . . . . . . . . . . . Retrieved Components . | . . . . . . . . . . . . . . . . . . . . . . . . . . Parts Scanalyzed 1 | . . . . . . . . . . . . . . . 1 . . . . . . . . . . Part Schematics Acquired 1 | . . . . . . . . . . . . . . . 1 . . . . . . . . . . Parts Damaged 1 | . . . . . . . . . . . . . . . 1 . . . . . . . . . . Bothacking | -11 -10 -10 -10 -9 -8 -8 -8 -8 -7 -7 -7 -7 -6 -6 -6 -6 -5 -5 -5 -5 -4 -4 -3 -3 -3 ------------ Run | Yrd Mat Min Exi Min Mat Gar Mat Gar Fac Was Fac Gar Fac Was Fac Gar Fac Gar Fac Gar Fac Gar Res Gar Res Used RIF Installer 11 | . . . . . . 1 . 2 . . . 1 . . . 1 . 1 . 1 . 2 . 2 . Hotswap 1 | . . . . . . . . 1 . . . . . . . . . . . . . . . . . Code Merge 2 | . . . . . . . . . . . . . . . . . . . . 1 . 1 . . . Threat Obfuscator 1 | . . . . . . . . . . . . . . . . . . 1 . . . . . . . Signal Jammer 1 | . . . . . . . . 1 . . . . . . . . . . . . . . . . . Zone Cloak 2 | . . . . . . . . . . . . . . . . 1 . . . . . . . 1 . Autooverride 2 | . . . . . . . . . . . . . . . . . . . . . . 1 . 1 . Autoassimilate 1 | . . . . . . . . . . . . 1 . . . . . . . . . . . . . Robots Hacked 163 | . . . . . . . 1 8 6 7 6 9 4 6 6 17 13 19 15 5 1 17 4 16 3 Non-combat 32 | . . . . . . . . . 4 . 4 . 3 . 3 . 7 . 4 . 1 1 2 1 2 Combat 131 | . . . . . . . 1 8 2 7 2 9 1 6 3 17 6 19 11 5 . 16 2 15 1 Autooverrided 4 | . . . . . . . . . . . . . . . . . . . . . . 2 1 1 . Autoassimilated 12 | . . . . . . . . . . . . . . . . 2 1 3 1 . . 3 . 1 1 Robot Hacks Applied 172 | . . . . . . . 1 10 7 7 7 10 4 6 7 17 17 17 18 5 1 15 6 15 2 parse_system 6 | . . . . . . . . . . 1 . . . . . . . 1 2 . . 2 . . . no_distress 2 | . . . . . . . . . . . . . . . . . 2 . . . . . . . . find_chute 2 | . . . . . . . . . 1 . . . 1 . . . . . . . . . . . . ignore_repairs 1 | . . . . . . . . . 1 . . . . . . . . . . . . . . . . find_fabricator 1 | . . . . . . . . . . . . . . . . . 1 . . . . . . . . drop_inventory 9 | . . . . . . . . . 1 . 2 . 1 . . . 3 . 1 . 1 . . . . locate_stockpiles 1 | . . . . . . . . . . . . . . . . . 1 . . . . . . . . purge_threat 7 | . . . . . . . . . . . . . . . . . 2 . 2 . . . 3 . . locate_traps 1 | . . . . . . . . . . . . . . . . . . . 1 . . . . . . summon_haulers 1 | . . . . . . . . . . . 1 . . . . . . . . . . . . . . map_route 8 | . . . . . . . . . 1 . 1 . . . 1 . 1 . 2 . . . 1 . 1 mark_security 2 | . . . . . . . . . 1 . . . . . . . . . 1 . . . . . . redirect_shields 1 | . . . . . . . . . . . . . . . . . . . . . . 1 . . . ignore_targets 12 | . . . . . . . . . . 6 . . . 6 . . . . . . . . . . . find_shortcuts 1 | . . . . . . . . 1 . . . . . . . . . . . . . . . . . find_garrison 3 | . . . . . . . 1 . . . 1 . . . 1 . . . . . . . . . . scatter_targeting 4 | . . . . . . . . 1 . . . . . . 1 1 . . . . . . . 1 . link_complan 1 | . . . . . . . . . . . . . . . . . . . . . . . . 1 . disrupt_area 1 | . . . . . . . . . 1 . . . . . . . . . . . . . . . . spike_heat 1 | . . . . . . . . . . . . . . . . . . 1 . . . . . . . amplify_resonance 22 | . . . . . . . . 3 . . . 2 1 . . 3 1 5 1 2 . 4 . . . reboot_system 12 | . . . . . . . . . 1 . 1 . . . 2 6 1 . . . . . . 1 . overwrite_iff 43 | . . . . . . . . 3 . . 1 5 . . . 6 2 8 4 3 . 5 . 6 . streamctrl_high 2 | . . . . . . . . . . . . . . . . . . . . . . 1 1 . . formatsys_low 9 | . . . . . . . . . . . . . 1 . 2 . 2 . 1 . . . 1 1 1 formatsys_high 19 | . . . . . . . . 2 . . . 3 . . . 1 1 2 3 . . 2 . 5 . Relay Couplers Released 125 | . . . . . . 11 . 19 . . . 18 . . . 13 . 14 4 18 . 17 . 11 . Machine Destruction 118 | . . . . . . 8 . 19 . . . 18 . . . 13 . 14 . 18 . 17 . 11 . Programmers 7 | . . . . . . 3 . . . . . . . . . . . . 4 . . . . . . Attached 46 | . . . . . . . 1 5 2 1 2 3 2 . 1 4 3 5 2 4 1 3 1 3 3 Merged Code Value 231 | . . . . . . . . . . . . . . . . . . . . 23 . 100 12 85 11 Fabnet Peak Effective % . | . . . . . . . . . . . . . . . . . . . . . . . . . . Robots Rewired 21 | . . . . . . . . . . . . 4 . . . 6 . 1 1 1 . 1 . 7 . Allies Hacked 16 | . . . . . . . . . . . . . . . . 1 . . 4 1 . . . 1 9 Hacks Repelled . | . . . . . . . . . . . . . . . . . . . . . . . . . . Allies | -11 -10 -10 -10 -9 -8 -8 -8 -8 -7 -7 -7 -7 -6 -6 -6 -6 -5 -5 -5 -5 -4 -4 -3 -3 -3 -------- Run | Yrd Mat Min Exi Min Mat Gar Mat Gar Fac Was Fac Gar Fac Was Fac Gar Fac Gar Fac Gar Fac Gar Res Gar Res Total Allies 117 | . . . . . . 2 . 4 . . 1 15 1 . 2 15 6 14 12 4 . 14 3 22 2 Largest Group 14 | . . . . . . 2 2 1 1 . . 9 10 9 4 8 3 3 7 7 . 3 2 14 11 Highest-Rated Group 760 | . . . . . . 64 64 16 15 . . 315 338 314 130 181 171 203 303 303 . 158 126 760 570 Highest-Rated Ally 148 | . . . . . . 39 39 16 15 . . 62 62 62 59 32 142 142 99 49 . 148 116 95 67 Total Orders 40 | . . . . . . . . 2 . . . . 1 3 1 6 3 2 . . . 5 2 11 4 STAY 15 | . . . . . . . . 1 . . . . . 1 . 2 1 1 . . . 2 1 4 2 FOLLOW 9 | . . . . . . . . 1 . . . . . 1 . 2 1 1 . . . 1 . 2 . GUARD 3 | . . . . . . . . . . . . . . . . . . . . . . . . 2 1 AID 12 | . . . . . . . . . . . . . 1 1 1 2 1 . . . . 2 . 3 1 EXPLORE 1 | . . . . . . . . . . . . . . . . . . . . . . . 1 . . Ally Attacks 770 | . . . . . . 15 11 12 9 . . 39 10 141 11 60 21 40 136 32 . 26 3 134 70 Total Damage 22543 | . . . . . . 71 173 219 154 . . 1176 171 3958 179 2092 632 1045 3974 747 . 757 89 4125 2981 Kills 115 | . . . . . . 3 1 2 3 . . 11 1 9 . 13 3 9 34 4 . 3 . 13 6 Allies Corrupted 6 | . . . . . . . . . . . . . . . . . . . 1 1 . . . . 4 Allies Melted 3 | . . . . . . . . . . . . . . . . . . . . . . 1 1 1 . Intel | -11 -10 -10 -10 -9 -8 -8 -8 -8 -7 -7 -7 -7 -6 -6 -6 -6 -5 -5 -5 -5 -4 -4 -3 -3 -3 ------- Run | Yrd Mat Min Exi Min Mat Gar Mat Gar Fac Was Fac Gar Fac Was Fac Gar Fac Gar Fac Gar Fac Gar Res Gar Res Active Infowar (turns) 3554 | . . . . . . 2 . . . . . . . . . . 84 1924 815 . . . 369 18 342 Optics 2821 | . . . . . . . . . . . . . . . . . 80 1924 815 . . . . 2 . Sensors 725 | . . . . . . . . . . . . . . . . . . . . . . . 369 14 342 Terrain 2 | . . . . . . . . . . . . . . . . . . . . . . . . . 2 Structural 56 | . . . . . . . . . . . . . . . . . . . . . . . . . 56 Seismic 2 | . . . . . . 2 . . . . . . . . . . . . . . . . . . . T.N.C. 4 | . . . . . . . . . . . . . . . . . 4 . . . . . . . . Spoofing 2 | . . . . . . . . . . . . . . . . . . . . . . . . 2 . Robot Analysis Total 3 | . . . . . 3 . . . . . . . . . . . . . . . . . . . . Derelict Logs Recovered 2 | . . 1 . 1 . . . . . . . . . . . . . . . . . . . . . Drone Launches 1 | . . . . . . . . . . . . . . . . . . . . . . . 1 . . Drone Recoveries . | . . . . . . . . . . . . . . . . . . . . . . . . . . Exploration | -11 -10 -10 -10 -9 -8 -8 -8 -8 -7 -7 -7 -7 -6 -6 -6 -6 -5 -5 -5 -5 -4 -4 -3 -3 -3 ------------- Run | Yrd Mat Min Exi Min Mat Gar Mat Gar Fac Was Fac Gar Fac Was Fac Gar Fac Gar Fac Gar Fac Gar Res Gar Res Turns Passed 28259 | 11 1767 264 550 649 1293 1443 358 2328 961 1131 1269 1633 223 212 558 1458 1049 1924 1461 1446 111 1840 560 2938 822 Spaces Moved 12188 | 10 649 108 227 263 609 562 104 775 368 324 670 804 116 108 247 701 449 831 770 672 66 895 290 1243 327 Core 18 | . . . . . . . . . . . . . . . . . . . . . . . . . 18 Treads 12096 | . 585 108 227 263 609 562 104 775 368 324 670 804 116 108 247 701 449 831 770 672 66 895 290 1243 309 Legs 74 | 10 64 . . . . . . . . . . . . . . . . . . . . . . . . Wheels . | . . . . . . . . . . . . . . . . . . . . . . . . . . Hover . | . . . . . . . . . . . . . . . . . . . . . . . . . . Flight . | . . . . . . . . . . . . . . . . . . . . . . . . . . Fastest Speed 50 | 120 120 240 240 240 160 243 238 235 232 150 160 160 160 160 160 160 160 152 152 160 160 152 158 155 50 Average Speed 186 | 120 218 240 240 240 195 243 242 237 234 251 160 160 160 160 160 160 175 190 157 160 160 172 158 159 156 Slowest Speed 320 | 120 240 240 240 240 243 243 243 238 236 320 160 160 160 160 240 240 320 200 237 160 160 232 158 237 165 Overloaded Moves . | . . . . . . . . . . . . . . . . . . . . . . . . . . Propulsion Burnouts . | . . . . . . . . . . . . . . . . . . . . . . . . . . Robots Hopped . | . . . . . . . . . . . . . . . . . . . . . . . . . . Potential Cave-ins 2 | . . . . . 2 . . . . . . . . . . . . . . . . . . . . Cave-ins Triggered . | . . . . . . . . . . . . . . . . . . . . . . . . . . Exploration Rate (%) 47 | 2 79 50 60 53 40 66 20 75 16 99 20 90 5 75 9 82 11 81 23 79 3 81 17 85 6 Regions Visited 25 Branch Regions 3 Pre-discovered Areas 1 | . . 1 . . . . . . . . . . . . . . . . . . . . . . . Known Exits Taken 8 | . . . . . 1 . 1 . . . 1 . . . 1 . 1 . 1 . 1 . 1 . . Unknown Exits Taken 5 | 1 1 1 1 1 . . . . . . . . . . . . . . . . . . . . . Scrap Searched 5 | . . 2 . 3 . . . . . . . . . . . . . . . . . . . . . Spaces Dug 142 | . . . . . 2 2 10 29 38 . . 8 . . . . 2 8 6 16 . 7 1 10 3 Terrain Destroyed 517 | . 11 . . 25 8 2 50 44 58 . 1 13 . . 1 26 26 29 16 60 . 73 9 52 13 Melee 22 | . . . . . 2 2 3 13 1 . . . . . . . . 1 . . . . . . . Projectile 213 | . . . . . 6 . . . . . 1 . . . 1 1 26 28 16 38 . 22 9 52 13 AOE 282 | . 11 . . 25 . . 47 31 57 . . 13 . . . 25 . . . 22 . 51 . . . Terrain Rammed . | . . . . . . . . . . . . . . . . . . . . . . . . . . Walls Destroyed . | . . . . . . . . . . . . . . . . . . . . . . . . . . Machines Disabled . | . . . . . . . . . . . . . . . . . . . . . . . . . . Actions | -11 -10 -10 -10 -9 -8 -8 -8 -8 -7 -7 -7 -7 -6 -6 -6 -6 -5 -5 -5 -5 -4 -4 -3 -3 -3 --------- Run | Yrd Mat Min Exi Min Mat Gar Mat Gar Fac Was Fac Gar Fac Was Fac Gar Fac Gar Fac Gar Fac Gar Res Gar Res Total 16585 | 9 851 110 236 275 696 626 172 1186 434 519 836 1017 149 134 389 936 614 1070 971 910 75 1184 390 2192 604 Wait 1628 | . 69 . . . 10 . 21 257 . 31 89 15 16 1 90 35 31 35 88 55 . 64 18 559 144 Move 12171 | 9 648 107 226 262 609 561 104 774 368 323 670 803 116 107 247 700 449 830 769 671 65 894 290 1242 327 Hop . | . . . . . . . . . . . . . . . . . . . . . . . . . . Pick Up 277 | . 21 . 3 2 20 18 2 17 7 5 16 24 1 3 4 21 6 26 12 10 4 22 10 14 9 Fast Attach 97 | . 3 . 1 . 1 1 . 1 2 5 3 2 2 1 6 5 5 5 4 8 . 9 11 17 5 Attach 87 | . 2 . . 2 10 . 1 5 2 4 4 2 2 1 2 4 7 5 6 5 1 6 3 3 10 Detach 35 | . 1 . 1 . 2 . 1 2 . 1 2 . 2 . 2 2 3 . 3 2 . 1 1 7 2 Swap 231 | . 15 . . . 9 10 13 29 12 6 7 16 2 1 1 11 13 13 6 18 . 17 6 16 10 Drop 286 | . 14 . 5 2 15 15 2 14 8 15 13 20 1 3 8 21 6 23 8 14 3 29 16 22 9 Fire 1560 | . 69 . . 5 8 4 16 36 23 129 32 98 7 17 29 127 88 114 70 127 2 132 34 310 83 Melee 94 | . . . . . 10 13 12 38 2 . . 8 . . . . 1 4 . . . 6 . . . Ram 1 | . . . . . . . . . . . . . . . . . . . 1 . . . . . . Kick . | . . . . . . . . . . . . . . . . . . . . . . . . . . Crush 37 | . 9 3 . 2 2 . . . 10 . . . . . . . 4 . 3 . . . 1 1 2 Escape Stasis 33 | . . . . . . 4 . 12 . . . . . . . . . 13 . . . 4 . . . Rewire 48 | . . . . . . . . 1 . . . 29 . . . 10 1 2 1 . . . . 1 3 Trap . | . . . . . . . . . . . . . . . . . . . . . . . . . . Miscellaneous . | . . . . . . . . . . . . . . . . . . . . . . . . . . Route ------- -11/Scrapyard -10/Materials (discovered 4 exits: [*Mat x2] / [*Min] / [*Sub]) -10/Mines (discovered 2 exits: [*Mat] / *Exi) -10/Exiles -9/Mines -8/Materials -8/Garrison (discovered 3 exits: *Mat x3) -8/Materials -8/Garrison (discovered 3 exits: *Fac x3) -7/Factory -7/Waste -7/Factory -7/Garrison (discovered 3 exits: *Fac x3) -6/Factory -6/Waste -6/Factory (discovered 2 exits: *Fac / Gar) -6/Garrison (discovered 3 exits: *Fac x3) -5/Factory (discovered 3 exits: *Fac / [Upp] / Gar) -5/Garrison (discovered 3 exits: *Fac x3) -5/Factory (discovered 3 exits: Fac / [*Upp] / Gar) -5/Garrison (discovered 3 exits: *Fac x3) -4/Factory -4/Garrison (discovered 3 exits: *Res x3) -3/Research (discovered 2 exits: Arm / Gar) -3/Garrison (discovered 2 exits: *Res x2) -3/Research (discovered 3 exits: Arm / Tes x2) History --------- Turn | Location | Event 1 | -11/Scrapyard | Discovered new exit (range 3) 12 | -11/Scrapyard | Entered Materials 620 | -10/Materials | Build established: Mutant 918 | -10/Materials | Discovered new exit (range 8) 1062 | -10/Materials | Discovered new exit (range 10) 1224 | -10/Materials | Repaired Lgt. Treads 1611 | -10/Materials | Discovered new exit (range 8) 1615 | -10/Materials | Build established: Scavenger-Mutant 1765 | -10/Materials | Discovered new exit (range 6) 1779 | -10/Materials | Entered Mines 1821 | -10/Mines | YI-UF0 nonchalantly dropped a Grenade Launcher on the ground 1827 | -10/Mines | Discovered new exit (range 11) 2000 | -10/Mines | Learned location of Mines (-9) 2034 | -10/Mines | Deemed a non-threat by the Exiles lab entrance 2034 | -10/Mines | Discovered new exit (range 5) 2043 | -10/Mines | Entered Exiles 2101 | -10/Exiles | Met 8R-AWN 2142 | -10/Exiles | Met EX-HEX 2207 | -10/Exiles | Met EX-BIN 2235 | -10/Exiles | Aligned with FarCom system 2238 | -10/Exiles | Given EX-Vault access code 2298 | -10/Exiles | Opened EX-Vault 2313 | -10/Exiles | Found Longsword +1 2327 | -10/Exiles | Found Gui. Plasma Cannon 2345 | -10/Exiles | Found AWS/Thermal 2397 | -10/Exiles | Warned to stay clear of 0b10 Research branches 2402 | -10/Exiles | Exiles lab attacked by MAIN.C 2565 | -10/Exiles | Discovered new exit (range 14) 2593 | -10/Exiles | Stole three prototypes: AWS/Thermal, Gui. Plasma Cannon, Longsword +1 2593 | -10/Exiles | Entered Mines 2613 | -9/Mines | Build established: Mutant 2745 | -9/Mines | Learned Materials emergency access door positions 2822 | -9/Mines | Assembled infested the area 2827 | -9/Mines | Assisted by a Guerilla fighting off Assembled 3178 | -9/Mines | Discovered new exit (range 11) 3209 | -9/Mines | Found DCF Scrap (13 items) 3242 | -9/Mines | Entered Materials 3242 | -8/Materials | Evolved 4 slots: Propulsion x1, Utility x3 4039 | -8/Materials | Build established: Hacker-Mutant 4246 | -8/Materials | Central database locked down 4443 | -8/Materials | AWS/Thermal suddenly broke down 4535 | -8/Materials | Identified exit to Garrison 4535 | -8/Materials | Entered Garrison 4535 | -8/Garrison | Warlord forces raided the area 4553 | -8/Garrison | Triggered checkpoint 4577 | -8/Garrison | Installed Relay Interface Framework 4679 | -8/Garrison | Triggered checkpoint 4680 | -8/Garrison | Triggered checkpoint 4824 | -8/Garrison | Rescued a captive Derelict 4826 | -8/Garrison | Rescued a captive Derelict 4846 | -8/Garrison | Warlord forces retreated 4849 | -8/Garrison | Triggered checkpoint 5087 | -8/Garrison | Discovered new exit (range 10) 5189 | -8/Garrison | Discovered new exit (range 23) 5189 | -8/Garrison | Discovered new exit (range 51) 5189 | -8/Garrison | Discovered new exit (range 63) 5407 | -8/Garrison | Triggered checkpoint 5486 | -8/Garrison | Garrison Relay disabled 5622 | -8/Garrison | Garrison Relay disabled 5754 | -8/Garrison | Destroyed 6L-LHT(g) 5801 | -8/Garrison | Triggered checkpoint 5912 | -8/Garrison | Build established: Bothacker-Mutant 5978 | -8/Garrison | Entered Materials 5978 | -8/Materials | Accompanied by 2 allies 6244 | -8/Materials | Core integrity fell below 50% 6336 | -8/Materials | Identified exit to Garrison 6336 | -8/Materials | Entered Garrison 6687 | -8/Garrison | Triggered checkpoint 6706 | -8/Garrison | Garrison Relay disabled 7064 | -8/Garrison | Triggered checkpoint 7262 | -8/Garrison | Triggered checkpoint 7300 | -8/Garrison | Triggered checkpoint 7381 | -8/Garrison | Discovered new exit (range 12) 7411 | -8/Garrison | Expanded RIF knowledge: Signal Jamming 7440 | -8/Garrison | Triggered checkpoint 7465 | -8/Garrison | Garrison Relay disabled 7865 | -8/Garrison | Discovered new exit (range 8) 7936 | -8/Garrison | Triggered checkpoint 7962 | -8/Garrison | Garrison Relay disabled 8023 | -8/Garrison | Garrison Relay disabled 8566 | -8/Garrison | Expanded RIF knowledge: Hotswap 8638 | -8/Garrison | Discovered new exit (range 11) 8664 | -8/Garrison | Entered Factory 8664 | -7/Factory | Accompanied by 1 ally 8664 | -7/Factory | Evolved 2 slots: Propulsion x1, Utility x1 8666 | -7/Factory | FarCom data flow suspended 9064 | -7/Factory | First assault squad dispatched 9625 | -7/Factory | Sucked down chute 9625 | -7/Factory | Entered Waste 9640 | -7/Waste | EMP discharged 9640 | -7/Waste | System corruption reached 10% 9646 | -7/Waste | Spotted C-40 Crusher 9671 | -7/Waste | Spotted C-40 Crusher 9681 | -7/Waste | Spotted C-40 Crusher 9697 | -7/Waste | Destroyed C-40 Crusher 9701 | -7/Waste | Spotted C-40 Crusher 9731 | -7/Waste | Found Damper Plating 9740 | -7/Waste | EMP discharged 9745 | -7/Waste | Spotted C-40 Crusher 9753 | -7/Waste | Spotted C-40 Crusher 9840 | -7/Waste | EMP discharged 9938 | -7/Waste | Destroyed C-40 Crusher 9940 | -7/Waste | EMP discharged 10040 | -7/Waste | EMP discharged 10140 | -7/Waste | EMP discharged 10240 | -7/Waste | EMP discharged 10297 | -7/Waste | Destroyed C-40 Crusher 10340 | -7/Waste | EMP discharged 10362 | -7/Waste | Destroyed C-40 Crusher 10440 | -7/Waste | EMP discharged 10465 | -7/Waste | Discovered new exit (range 16) 10540 | -7/Waste | EMP discharged 10640 | -7/Waste | EMP discharged 10740 | -7/Waste | EMP discharged 10756 | -7/Waste | Entered Factory 12025 | -7/Factory | Identified exit to Garrison 12025 | -7/Factory | Entered Garrison 12073 | -7/Garrison | Triggered checkpoint 12091 | -7/Garrison | Garrison Relay disabled 12215 | -7/Garrison | Triggered checkpoint 12255 | -7/Garrison | Triggered checkpoint 12262 | -7/Garrison | Triggered checkpoint 12306 | -7/Garrison | Lost 4 allies 12415 | -7/Garrison | Discovered new exit (range 14) 12485 | -7/Garrison | Rescued a captive Derelict 12577 | -7/Garrison | Triggered checkpoint 12600 | -7/Garrison | Garrison Relay disabled 12659 | -7/Garrison | Found embedded Infiltrators 12734 | -7/Garrison | Discovered new exit (range 12) 12816 | -7/Garrison | Garrison Relay disabled 13079 | -7/Garrison | Triggered checkpoint 13330 | -7/Garrison | Discovered new exit (range 12) 13337 | -7/Garrison | Triggered checkpoint 13375 | -7/Garrison | Triggered checkpoint 13423 | -7/Garrison | Garrison Relay disabled 13505 | -7/Garrison | Triggered checkpoint 13549 | -7/Garrison | Expanded RIF knowledge: Autoassimilate 13584 | -7/Garrison | Garrison Relay disabled 13658 | -7/Garrison | Entered Factory 13658 | -6/Factory | Accompanied by 9 allies 13658 | -6/Factory | Evolved 2 slots: Utility x2 13852 | -6/Factory | Build established: Botlord-Mutant 13881 | -6/Factory | Sucked down chute 13881 | -6/Factory | Entered Waste 13894 | -6/Waste | Spotted C-40 Crusher 13896 | -6/Waste | EMP discharged 13896 | -6/Waste | Spotted C-40 Crusher 13904 | -6/Waste | Spotted C-40 Crusher 13976 | -6/Waste | 3 allies followed down the chute 13983 | -6/Waste | Allies destroyed C-40 Crusher 13991 | -6/Waste | 7 allies followed down the chute 13996 | -6/Waste | EMP discharged 13999 | -6/Waste | Spotted C-40 Crusher 14004 | -6/Waste | Spotted C-40 Crusher 14005 | -6/Waste | Spotted C-40 Crusher 14016 | -6/Waste | Allies destroyed C-40 Crusher 14035 | -6/Waste | Allies destroyed C-40 Crusher 14068 | -6/Waste | Discovered new exit (range 16) 14069 | -6/Waste | Allies destroyed C-40 Crusher 14078 | -6/Waste | Allies destroyed C-40 Crusher 14093 | -6/Waste | Entered Factory 14093 | -6/Factory | Accompanied by 4 allies 14266 | -6/Factory | Discovered new exit (range 12) 14311 | -6/Factory | Lost 4 allies 14441 | -6/Factory | Repaired Imp. Heavy Treads 14651 | -6/Factory | Identified exit to Garrison 14651 | -6/Factory | Entered Garrison 14651 | -6/Garrison | Accompanied by 2 allies 14812 | -6/Garrison | Found Relay Coupler [Proto] 14815 | -6/Garrison | Found Relay Coupler [Proto] 14817 | -6/Garrison | Found Relay Coupler [Proto] 14825 | -6/Garrison | Found Relay Coupler [Proto] 14899 | -6/Garrison | Triggered checkpoint 14899 | -6/Garrison | Triggered checkpoint 14901 | -6/Garrison | Spotted B-75 Beast 14935 | -6/Garrison | Allies destroyed B-75 Beast 14943 | -6/Garrison | Triggered checkpoint 14949 | -6/Garrison | Triggered checkpoint 14991 | -6/Garrison | Lost 5 allies 15011 | -6/Garrison | Triggered checkpoint 15031 | -6/Garrison | Garrison Relay disabled 15086 | -6/Garrison | Discovered new exit (range 11) 15247 | -6/Garrison | Triggered checkpoint 15262 | -6/Garrison | Discovered new exit (range 10) 15297 | -6/Garrison | Garrison Relay disabled 15523 | -6/Garrison | Garrison Relay disabled 15561 | -6/Garrison | Triggered checkpoint 15647 | -6/Garrison | Triggered checkpoint 15679 | -6/Garrison | Triggered checkpoint 15908 | -6/Garrison | Discovered new exit (range 15) 15932 | -6/Garrison | Found Hvy. Reactive Plating 15940 | -6/Garrison | Lost 3 allies 15963 | -6/Garrison | Expanded RIF knowledge: Zone Cloak 16109 | -6/Garrison | Entered Factory 16109 | -5/Factory | Accompanied by 1 ally 16109 | -5/Factory | Evolved 2 slots: Power x1, Utility x1 16421 | -5/Factory | Discovered new exit (range 15) 16503 | -5/Factory | Discovered new exit (range 127) 17093 | -5/Factory | Lost 3 parts (1p2u) 17158 | -5/Factory | Identified exit to Garrison 17158 | -5/Factory | Entered Garrison 17158 | -5/Garrison | Accompanied by 1 ally 17173 | -5/Garrison | Triggered checkpoint 17236 | -5/Garrison | Expanded RIF knowledge: Threat Obfuscation 17309 | -5/Garrison | Spotted B-75 Beast 17310 | -5/Garrison | System corruption reached 10% 17338 | -5/Garrison | Allies destroyed B-75 Beast 17342 | -5/Garrison | Triggered checkpoint 17345 | -5/Garrison | Triggered checkpoint 17400 | -5/Garrison | Lost 7 allies 17581 | -5/Garrison | Discovered new exit (range 12) 17614 | -5/Garrison | Triggered checkpoint 17686 | -5/Garrison | Garrison Relay disabled 18052 | -5/Garrison | Triggered checkpoint 18184 | -5/Garrison | Triggered checkpoint 18223 | -5/Garrison | Garrison Relay disabled 18360 | -5/Garrison | Discovered new exit (range 10) 18622 | -5/Garrison | Discovered new exit (range 70) 18622 | -5/Garrison | Discovered new exit (range 48) 18622 | -5/Garrison | Discovered new exit (range 23) 18628 | -5/Garrison | Triggered checkpoint 18702 | -5/Garrison | Triggered checkpoint 18988 | -5/Garrison | Garrison Relay disabled 19012 | -5/Garrison | Rewired Striker 19082 | -5/Garrison | Entered Factory 19082 | -5/Factory | Accompanied by 3 allies 19152 | -5/Factory | Discovered new exit (range 150) 19526 | -5/Factory | Fabricated Centrium Heavy Treads (x1) 19902 | -5/Factory | Found Prototype Launcher 20329 | -5/Factory | Discovered new exit (range 4) 20401 | -5/Factory | Spotted B-75 Beast 20434 | -5/Factory | Destroyed B-75 Beast 20457 | -5/Factory | Fabricated X-72 Disruptor? 20474 | -5/Factory | Garrison activated, responded to threat 20533 | -5/Factory | Identified exit to Garrison 20543 | -5/Factory | Entered Garrison 20543 | -5/Garrison | Accompanied by 7 allies 20567 | -5/Garrison | Triggered checkpoint 20620 | -5/Garrison | Garrison Relay disabled 20627 | -5/Garrison | Identified Mni. Smartbomb Launcher 20741 | -5/Garrison | Spotted B-75 Beast 20788 | -5/Garrison | Destroyed B-75 Beast 20810 | -5/Garrison | Lost 6 allies 20864 | -5/Garrison | Destroyed 15 combat bots 21035 | -5/Garrison | Triggered checkpoint 21036 | -5/Garrison | Garrison Relay disabled 21127 | -5/Garrison | Triggered checkpoint 21271 | -5/Garrison | Discovered new exit (range 11) 21438 | -5/Garrison | Triggered checkpoint 21449 | -5/Garrison | Triggered checkpoint 21488 | -5/Garrison | Discovered new exit (range 10) 21513 | -5/Garrison | Triggered checkpoint 21564 | -5/Garrison | Garrison Relay disabled 21734 | -5/Garrison | Expanded RIF knowledge: Code Merge 21849 | -5/Garrison | Triggered checkpoint 21878 | -5/Garrison | Garrison Relay disabled 21965 | -5/Garrison | Discovered new exit (range 10) 21989 | -5/Garrison | Entered Factory 21989 | -4/Factory | Evolved 2 slots: Propulsion x1, Utility x1 22089 | -4/Factory | Identified exit to Garrison 22100 | -4/Factory | Entered Garrison 22144 | -4/Garrison | Spotted B-90 Cyclops 22148 | -4/Garrison | Rewired B-90 Cyclops 22162 | -4/Garrison | Hijacked Cyclops 7b control node with streamctrl_high 22206 | -4/Garrison | Destroyed Cyclops 7b 22223 | -4/Garrison | Found Unknown Device 22223 | -4/Garrison | Identified Quantum Capacitor 22282 | -4/Garrison | Found Quantum Capacitor 22484 | -4/Garrison | Triggered checkpoint 22509 | -4/Garrison | Garrison Relay disabled 22662 | -4/Garrison | Spotted B-86 Titan 22686 | -4/Garrison | Destroyed B-86 Titan 22706 | -4/Garrison | Triggered checkpoint 22708 | -4/Garrison | Triggered checkpoint 22912 | -4/Garrison | Garrison Relay disabled 22964 | -4/Garrison | Expanded RIF knowledge: Code Merge 23010 | -4/Garrison | Triggered checkpoint 23101 | -4/Garrison | Expanded RIF knowledge: Autooverride 23108 | -4/Garrison | Discovered new exit (range 3) 23252 | -4/Garrison | Triggered checkpoint 23300 | -4/Garrison | Garrison Relay disabled 23408 | -4/Garrison | Discovered new exit (range 10) 23507 | -4/Garrison | Triggered checkpoint 23558 | -4/Garrison | Lost 3 allies 23604 | -4/Garrison | Found Quantum Capacitor 23608 | -4/Garrison | Found Quantum Capacitor 23626 | -4/Garrison | Triggered checkpoint 23658 | -4/Garrison | Discovered new exit (range 13) 23787 | -4/Garrison | Garrison Relay disabled 23790 | -4/Garrison | Triggered checkpoint 23940 | -4/Garrison | Entered Research 23940 | -3/Research | Accompanied by 1 ally 23940 | -3/Research | Evolved 2 slots: Propulsion x1, Utility x1 24191 | -3/Research | Spotted B-86 Titan 24203 | -3/Research | Hijacked Titan 8a control node with streamctrl_high 24211 | -3/Research | Destroyed Titan 8a 24402 | -3/Research | Unchained authorized (DW-4LL) 24417 | -3/Research | Discovered new exit (range 53) 24500 | -3/Research | Identified exit to Garrison 24500 | -3/Research | Entered Garrison 24500 | -3/Garrison | Accompanied by 1 ally 24626 | -3/Garrison | Heavy support dispatched to Research 24694 | -3/Garrison | Triggered checkpoint 25226 | -3/Garrison | Found embedded Infiltrators 25230 | -3/Garrison | Heavy support dispatched to Research 25252 | -3/Garrison | Garrison Relay disabled 25322 | -3/Garrison | Spotted B-86 Titan 25329 | -3/Garrison | Triggered checkpoint 25342 | -3/Garrison | Triggered checkpoint 25343 | -3/Garrison | Rewired B-86 Titan 25374 | -3/Garrison | Triggered checkpoint 25446 | -3/Garrison | Heavy support dispatched to Research 25689 | -3/Garrison | Discovered new exit (range 13) 25689 | -3/Garrison | Spotted Striker 25689 | -3/Garrison | Spotted Striker 25696 | -3/Garrison | Triggered checkpoint 25882 | -3/Garrison | Heavy support dispatched to Research 25907 | -3/Garrison | Expanded RIF knowledge: Zone Cloak 25959 | -3/Garrison | Discovered new exit (range 10) 25984 | -3/Garrison | Identified exit to Research 26022 | -3/Garrison | Triggered checkpoint 26031 | -3/Garrison | Garrison Relay disabled 26102 | -3/Garrison | Triggered checkpoint 26347 | -3/Garrison | Garrison Relay disabled 26605 | -3/Garrison | Expanded RIF knowledge: Autooverride 26805 | -3/Garrison | H-XX Assembler disabled 27438 | -3/Garrison | Entered Research 27438 | -3/Research | Accompanied by 11 allies 27555 | -3/Research | Identified exit to Armory 27555 | -3/Research | Identified exit to Testing 27589 | -3/Research | Unchained authorized (DW-4LL) 27688 | -3/Research | First assault squad dispatched 27870 | -3/Research | DW-4LL burst out of a wall 28001 | -3/Research | P-80 Master assimilated allied Champion 8a 28004 | -3/Research | System corruption reached 10% 28056 | -3/Research | Lost 10 allies 28127 | -3/Research | DW-4LL burst out of a wall 28143 | -3/Research | System corruption reached 30% 28203 | -3/Research | Core integrity fell below 50% 28252 | -3/Research | Core integrity fell below 20% 28260 | -3/Research | Destroyed by H-77 Assassin with Coil Gun Last Messages --------------- 28242_ Acquired 17 matter. 28242_ R-10 Processor collects Com. HERF Cannon. 28244_ Slug penetrates Subatomic Condenser. 28245_ Acquired Relay Coupler [Proto]. 28246_ Subatomic Condenser collapses. 28246_ 6P8DH |RC5XD&2QRS:PTU 28255_ Penetrated by Slug. 28257_ Slug penetrates H-77 Assassin. 28257_ Slug penetrates Wall. 28257_ Penetrated by Slug. 28257_ Slug penetrates Wall. 28259_ Identified System Shield. 28259_ U-05 Engineer builds a Wall. 28260_ Penetrated by Slug. 28260_ Slug penetrates H-77 Assassin. 28260_ Penetrated by Slug. Map ----- +----------------------------------------------------+ | ????????????????????????????? ## "" | | ????????????????????????????? ## | | ????????????????????????????? ## | | ???????????????????????????????" """ ## | | ???????????????????????????????" """ ######+# | | ???????????????????????????????" """ | | ????????????????????????????? | | ????????????????????????????? | | ????????????????????????????? | | ????????????????????????????######+### ######## | | ????????????????????????????? # #??????? | | ????????????????????????????? # #??????? | | ????????????????????????????? # #??????? | | ????????????????????????????? ??? # #?????? | | ????????????????????????????? ! ??? # #?????? | | ?????????????????????????????????????# #?????? | | ?????????????????????????????????????# #?????? | | ?????????????????????????????????????# #?????? | | ??????????????????????????????######## ######## | | ??????????????????????????????# ?? | | ??????????????????????????????# ?? | | ??????????????????????????????# ?? | | ????????????????????########### ?? | | ????????????????????########### ##############? | | ????????????????????## # # ??????? | | ????????????????????## @ # # ??????? | | ????????????????????#|!! h # # ??????? | | ????????????????????##u*| hh # # ??????? | | ????????????????????## ] "" #= + ??????? | | ????????????????????## ! "" += # ??????? | | ????????????????????## [""" # # ??????? | | ????????????????????#; % # # ??????? | | ????????????????###### # # ??????? | | ????????????????############### # ??????? | | ????????????????## # # ??????? | | ????????????????## # # ??????? | | ????????????????## """ "" # #########?????? | | ?????############# """ """ #*%! #?????????????? | | ?????# ### """ R" # ! #?????????????? | | ?????# ### """ # #?????????????? | | ?????# ### "" # #?????????????? | | ?????# " ### """ + #?????????????? | | ?????# """### """ # #?????????????? | | ?????# """### """ # #?????????????? | | ?????# ### # # ????????????? | | ?????# # # ! # # ????????????? | | ##########"#################### # ???????????? | | *% ===%= *% [%** # ???????????? | | =%!% %/[[ !!!! # ??????????? | | !=!=!%*%=%* %[%= + ????????? | +----------------------------------------------------+ Best States ------------- Heat Dissipation 138 Coolant Potential 100 Energy Generation 45 Energy Capacity 2100 Matter Stores 300 Matter Capacity 300 Sight Range 22 Robot Scan Range 16 Terrain Scan Density 10 Corruption Block 8 Armor Coverage 1600 Resistance: KI 40 Resistance: TH 15 Resistance: EM 90 Utility Shielding 66 Phase Shifting 10 Evasion (%) 55 Recoil Reduction 6 Offensive Hacking 36 Defensive Hacking 10 Relay Coupler Types 5 Relay Coupler Value 176 Item Schematics ----------------- Huge Storage Unit | -10/Materials | Hacked Centrium Heavy Treads | -6/Factory | Scanalyzed Robot Schematics ------------------ A-02 Transporter | -7/Factory | Hacked Fabricated ------------ Centrium Heavy Treads | x1 | -5/Factory X-72 Disruptor | x2 | -5/Factory | Preloaded Repaired ---------- Lgt. Treads | 35% | -10/Materials Imp. Heavy Treads | 67% | -6/Factory Studied --------- Remote Datajack | -5/Factory | Hacked Hvy. Treads | -5/Factory | Hacked Alien Tech Used ----------------- None Achievements -------------- Drive-By Challenges ------------ None Game ------ Seed TimingStrikeSlamshotty Manual? 1 Play Time 04:05:10 Cumulative 356.5 hours Start 2025.11.03 @ 09:03:38 End 2025.11.04 @ 11:22:20 Sessions 7 Manual Loads 0 Difficulty Rogue Special Mode None Game No. 118 Rogue 118 Adventurer 0 Explorer 0 Win Type - Total 8 Types 3/0/3/0/0/0/1/0/0/1 Lore% 78 Gallery% 84 Achievement% 68 Wizard Run 0 Options --------- Layout 1 ASCII 0 Keyboard 1 Movement Arrows Keybinds 0 Fullscreen 1 Font 24/Smallcaps Map View 50x35 Zoom Use 0% Tactical HUD 1 Map Filters NONE Filters NONE Steam 1 RUN: fdb6567e-f4f5-4ea8-876a-f70427755be8